[Event "Kvibergspelen 2022"]
[Site "Kviberg Park Hotel & Conference, Krutvagen 2, Gothenburg, Sweden"]
[Date "2022.10.01"]
[Round "6.4"]
[White "Agdestein, Simen"]
[Black "Briem, Stephan"]
[Result "1-0"]
[TimeControl "15 minutes + 5 seconds per move from move one (Round 1 - 4) / 90 minutes + 30 seconds per move from move one (Round 5 - 8)"]
[WhiteTitle "GM"]
[WhiteFideId "1500015"]
[BlackFideId "2312506"]
[WhiteElo "2576"]
[BlackElo "2083"]

1. c4 {[%clk 01:24:26]} {[%emt 00:06:33]} e5 {[%clk 01:30:30]} {[%emt
00:00:30]} 2. Nc3 {[%clk 01:24:34]} {[%emt 00:00:23]} Nc6 {[%clk 01:30:34]}
{[%emt 00:00:25]} 3. Nf3 {[%clk 01:24:36]} {[%emt 00:00:28]} f5 {[%clk
01:27:25]} {[%emt 00:03:40]} 4. d4 {[%clk 01:24:53]} {[%emt 00:00:12]} e4
{[%clk 01:26:26]} {[%emt 00:01:29]} 5. Nd2 {[%clk 01:25:02]} {[%emt 00:00:21]}
Nf6 {[%clk 01:24:31]} {[%emt 00:02:25]} 6. e3 {[%clk 01:25:19]} {[%emt
00:00:13]} Be7 {[%clk 01:16:49]} {[%emt 00:08:12]} 7. a3 {[%clk 01:23:31]}
{[%emt 00:02:18]} a5 {[%clk 01:15:53]} {[%emt 00:01:26]} 8. Qa4 {[%clk
01:20:27]} {[%emt 00:03:37]} O-O {[%clk 01:08:27]} {[%emt 00:07:53]} 9. b4
{[%clk 01:18:59]} {[%emt 00:01:58]} Qe8 {[%clk 01:05:19]} {[%emt 00:03:38]} 10.
b5 {[%clk 01:13:15]} {[%emt 00:06:14]} Nd8 {[%clk 01:04:23]} {[%emt 00:01:26]}
11. c5 {[%clk 01:11:28]} {[%emt 00:02:18]} d5 {[%clk 00:55:42]} {[%emt
00:09:09]} 12. cxd6 {[%clk 01:09:31]} {[%emt 00:02:27]} Bxd6 {[%clk 00:55:49]}
{[%emt 00:00:24]} 13. b6 {[%clk 01:08:10]} {[%emt 00:01:50]} c6 {[%clk
00:47:49]} {[%emt 00:08:30]} 14. Nc4 {[%clk 01:08:07]} {[%emt 00:00:33]} Bb8
{[%clk 00:48:02]} {[%emt 00:00:17]} 15. Bd2 {[%clk 01:04:28]} {[%emt 00:04:10]}
Be6 {[%clk 00:44:56]} {[%emt 00:03:35]} 16. Qc2 {[%clk 01:03:25]} {[%emt
00:01:33]} Bf7 {[%clk 00:22:07]} {[%emt 00:23:20]} 17. Na4 {[%clk 00:55:45]}
{[%emt 00:08:09]} f4 {[%clk 00:21:56]} {[%emt 00:00:41]} 18. exf4 {[%clk
00:52:10]} {[%emt 00:04:05]} Ne6 {[%clk 00:21:28]} {[%emt 00:00:57]} 19. Qb2
{[%clk 00:45:01]} {[%emt 00:07:39]} Nxf4 {[%clk 00:20:09]} {[%emt 00:01:50]} 20.
Ne5 {[%clk 00:41:00]} {[%emt 00:04:30]} N6d5 {[%clk 00:10:59]} {[%emt
00:09:41]} 21. O-O-O {[%clk 00:34:06]} {[%emt 00:07:24]} Qe7 {[%clk 00:07:04]}
{[%emt 00:04:24]} 22. Re1 {[%clk 00:34:08]} {[%emt 00:00:29]} Bd6 {[%clk
00:05:19]} {[%emt 00:02:15]} 23. Nc4 {[%clk 00:33:50]} {[%emt 00:00:48]} Bg6
{[%clk 00:05:12]} {[%emt 00:00:37]} 24. f3 {[%clk 00:31:53]} {[%emt 00:02:27]}
e3 {[%clk 00:02:43]} {[%emt 00:02:59]} 25. Bxe3 {[%clk 00:31:56]} {[%emt
00:00:27]} Nxe3 {[%clk 00:01:58]} {[%emt 00:01:15]} 26. Rxe3 {[%clk 00:31:57]}
{[%emt 00:00:29]} Qg5 {[%clk 00:01:20]} {[%emt 00:01:07]} 27. h4 {[%clk
00:06:02]} {[%emt 00:26:25]} Qh6 {[%clk 00:01:48]} {[%emt 00:00:02]} 28. Kd1
{[%clk 00:04:02]} {[%emt 00:02:31]} Rad8 {[%clk 00:01:29]} {[%emt 00:00:49]} 29.
g4 {[%clk 00:02:23]} {[%emt 00:02:09]} Nd5 {[%clk 00:00:50]} {[%emt 00:01:08]}
30. Re6 {[%clk 00:02:29]} {[%emt 00:00:24]} Qf4 {[%clk 00:00:57]} {[%emt
00:00:24]} 31. Be2 {[%clk 00:02:25]} {[%emt 00:00:34]} Rfe8 {[%clk 00:00:55]}
{[%emt 00:00:32]} 32. Rxe8+ {[%clk 00:02:07]} {[%emt 00:00:48]} Rxe8 {[%clk
00:01:07]} {[%emt 00:00:18]} 33. Qd2 {[%clk 00:01:56]} {[%emt 00:00:41]} Qg3
{[%clk 00:00:37]} {[%emt 00:00:59]} 34. Nxd6 {[%clk 00:01:45]} {[%emt
00:00:42]} Qxd6 {[%clk 00:00:48]} {[%emt 00:00:20]} 35. Nc5 {[%clk 00:01:52]}
{[%emt 00:00:22]} Re3 {[%clk 00:00:39]} {[%emt 00:00:38]} 36. Kc1 {[%clk
00:00:51]} {[%emt 00:01:32]} Qe7 {[%clk 00:00:35]} {[%emt 00:00:34]} 37. Bc4
{[%clk 00:01:02]} {[%emt 00:00:18]} Rxa3 {[%clk 00:00:34]} {[%emt 00:00:32]} 38.
Kb2 {[%clk 00:01:15]} {[%emt 00:00:17]} Re3 {[%clk 00:00:46]} {[%emt 00:00:19]}
39. Ra1 {[%clk 00:01:03]} {[%emt 00:00:41]} Bf7 {[%clk 00:00:40]} {[%emt
00:00:36]} 40. Qxa5 {[%clk 00:00:59]} {[%emt 00:00:34]} Re2+ {[%clk 00:00:35]}
{[%emt 00:00:35]} 41. Ka3 {[%emt 00:00:56]} Qe3+ {[%clk 00:00:47]} 42. Nb3
{[%clk 00:01:11]} {[%emt 00:00:10]} Qe7+ {[%clk 00:01:01]} {[%emt 00:00:16]} 43.
Qc5 {[%clk 00:01:22]} {[%emt 00:00:18]} Re3 {[%clk 00:00:41]} {[%emt 00:00:50]}
44. Kb2 {[%clk 00:01:06]} {[%emt 00:00:46]} g6 {[%clk 00:00:34]} {[%emt
00:00:38]} 45. Qxe7 {[%clk 00:01:05]} {[%emt 00:00:31]} Rxe7 {[%clk 00:00:41]}
{[%emt 00:00:22]} 46. Bxd5 {[%clk 00:01:13]} {[%emt 00:00:22]} Bxd5 {[%clk
00:00:49]} {[%emt 00:00:22]} 47. Nc5 {[%clk 00:01:38]} {[%emt 00:00:05]} Bxf3
{[%clk 00:00:33]} {[%emt 00:00:45]} 48. Ra8+ {[%clk 00:01:12]} {[%emt
00:00:57]} Kf7 {[%clk 00:00:55]} {[%emt 00:00:07]} 49. Rh8 {[%clk 00:00:42]}
{[%emt 00:01:00]} Re2+ {[%clk 00:00:36]} {[%emt 00:00:50]} 50. Kc3 {[%clk
00:01:05]} {[%emt 00:00:07]} Bxg4 {[%clk 00:00:31]} {[%emt 00:00:35]} 51. Rxh7+
{[%clk 00:01:31]} {[%emt 00:00:04]} Kf6 {[%clk 00:00:34]} {[%emt 00:00:27]} 52.
Rxb7 {[%clk 00:01:32]} {[%emt 00:00:29]} Re3+ {[%clk 00:00:44]} {[%emt
00:00:20]} 53. Kd2 {[%clk 00:01:14]} {[%emt 00:00:48]} Re2+ {[%clk 00:00:49]}
{[%emt 00:00:25]} 54. Kd3 {[%clk 00:01:16]} {[%emt 00:00:27]} Rb2 {[%clk
00:00:38]} {[%emt 00:00:41]} 55. Rb8 {[%clk 00:01:05]} {[%emt 00:00:42]} 1-0

[Event "Kvibergspelen 2022"]
[Site "Kviberg Park Hotel & Conference, Krutvagen 2, Gothenburg, Sweden"]
[Date "2022.10.01"]
[Round "6.5"]
[White "Tabaa, Ghayth"]
[Black "Kucuksari, Kaan"]
[Result "0-1"]
[TimeControl "15 minutes + 5 seconds per move from move one (Round 1 - 4) / 90 minutes + 30 seconds per move from move one (Round 5 - 8)"]
[BlackTitle "FM"]
[WhiteFideId "7603819"]
[BlackFideId "6380166"]
[WhiteElo "2066"]
[BlackElo "2482"]

1. e4 {[%clk 01:30:53]} {[%emt 00:00:07]} c5 {[%clk 01:27:52]} {[%emt
00:03:08]} 2. Nf3 {[%clk 01:29:37]} {[%emt 00:01:45]} e6 {[%clk 01:27:55]}
{[%emt 00:00:27]} 3. d3 {[%clk 01:28:39]} {[%emt 00:01:29]} Nc6 {[%clk
01:28:06]} {[%emt 00:00:19]} 4. g3 {[%clk 01:28:52]} {[%emt 00:00:18]} d6
{[%clk 01:24:46]} {[%emt 00:03:49]} 5. Bg2 {[%clk 01:28:43]} {[%emt 00:00:38]}
g6 {[%clk 01:25:09]} {[%emt 00:00:08]} 6. O-O {[%clk 01:28:42]} {[%emt
00:00:31]} Bg7 {[%clk 01:25:33]} {[%emt 00:00:06]} 7. c3 {[%clk 01:27:07]}
{[%emt 00:02:05]} e5 {[%clk 01:22:11]} {[%emt 00:03:51]} 8. a3 {[%clk
01:27:04]} {[%emt 00:00:35]} Nf6 {[%clk 01:20:52]} {[%emt 00:01:48]} 9. b4
{[%clk 01:21:50]} {[%emt 00:05:44]} O-O {[%clk 01:20:58]} {[%emt 00:00:24]} 10.
Re1 {[%clk 01:21:38]} {[%emt 00:00:42]} a6 {[%clk 01:18:22]} {[%emt 00:03:06]}
11. h3 {[%clk 01:17:28]} {[%emt 00:04:40]} b5 {[%clk 01:14:11]} {[%emt
00:04:41]} 12. Be3 {[%clk 01:04:19]} {[%emt 00:13:39]} Nd7 {[%clk 01:07:50]}
{[%emt 00:06:51]} 13. Nbd2 {[%clk 00:43:52]} {[%emt 00:20:57]} a5 {[%clk
01:01:33]} {[%emt 00:06:47]} 14. a4 {[%clk 00:38:31]} {[%emt 00:05:51]} axb4
{[%clk 00:58:36]} {[%emt 00:03:27]} 15. axb5 {[%clk 00:37:46]} {[%emt
00:01:15]} Rxa1 {[%clk 00:56:43]} {[%emt 00:02:23]} 16. Qxa1 {[%clk 00:38:03]}
{[%emt 00:00:12]} bxc3 {[%clk 00:56:48]} {[%emt 00:00:26]} 17. bxc6 {[%clk
00:35:31]} {[%emt 00:03:02]} cxd2 {[%clk 00:56:51]} {[%emt 00:00:26]} 18. Bxd2
{[%clk 00:33:08]} {[%emt 00:02:54]} Nb8 {[%clk 00:55:25]} {[%emt 00:01:55]} 19.
Ba5 {[%clk 00:16:51]} {[%emt 00:16:48]} Qe7 {[%clk 00:53:10]} {[%emt 00:02:45]}
20. c7 {[%clk 00:13:49]} {[%emt 00:03:33]} Na6 {[%clk 00:45:36]} {[%emt
00:08:03]} 21. Bb6 {[%clk 00:12:10]} {[%emt 00:02:08]} Qd7 {[%clk 00:39:49]}
{[%emt 00:06:18]} 22. Qa5 {[%clk 00:10:17]} {[%emt 00:02:23]} Bb7 {[%clk
00:28:10]} {[%emt 00:12:08]} 23. h4 {[%clk 00:03:43]} {[%emt 00:07:05]} Ra8
{[%clk 00:21:46]} {[%emt 00:06:54]} 24. Qc3 {[%clk 00:00:31]} {[%emt 00:03:42]}
Nxc7 {[%clk 00:22:13]} {[%emt 00:00:02]} 25. Ra1 {[%clk 00:00:33]} {[%emt
00:00:29]} Rxa1+ {[%clk 00:14:00]} {[%emt 00:08:43]} 26. Qxa1 {[%clk 00:01:01]}
{[%emt 00:00:01]} Na6 {[%clk 00:14:15]} {[%emt 00:00:15]} 27. Ng5 {[%clk
00:00:43]} {[%emt 00:00:49]} h6 {[%clk 00:14:12]} {[%emt 00:00:32]} 28. Nf3
{[%clk 00:00:39]} {[%emt 00:00:34]} Qb5 {[%clk 00:12:08]} {[%emt 00:02:34]} 29.
Bd8 {[%clk 00:00:36]} {[%emt 00:00:34]} Nb4 {[%clk 00:07:00]} {[%emt 00:05:38]}
30. h5 {[%clk 00:00:47]} {[%emt 00:00:18]} Qxd3 {[%clk 00:05:37]} {[%emt
00:01:53]} 31. hxg6 {[%clk 00:01:02]} {[%emt 00:00:16]} fxg6 {[%clk 00:06:06]}
32. Ne1 {[%clk 00:00:31]} {[%emt 00:01:01]} Qd2 {[%clk 00:01:56]} {[%emt
00:04:38]} 33. Bh3 {[%clk 00:00:32]} {[%emt 00:00:31]} Bxe4 {[%clk 00:01:50]}
{[%emt 00:00:35]} 34. Ba5 {[%clk 00:00:31]} {[%emt 00:00:32]} Kh7 {[%clk
00:01:32]} {[%emt 00:00:47]} 35. Ng2 {[%clk 00:00:45]} {[%emt 00:00:17]} Qa2
{[%clk 00:00:59]} {[%emt 00:01:03]} 36. Qxa2 {[%clk 00:00:31]} {[%emt
00:00:44]} Nxa2 {[%clk 00:01:27]} {[%emt 00:00:02]} 37. Ne3 {[%clk 00:00:48]}
{[%emt 00:00:13]} Nb4 {[%clk 00:01:08]} {[%emt 00:00:47]} 38. Be6 {[%clk
00:01:06]} {[%emt 00:00:14]} h5 {[%clk 00:00:51]} {[%emt 00:00:47]} 39. g4
{[%clk 00:01:21]} {[%emt 00:00:14]} hxg4 {[%clk 00:01:05]} {[%emt 00:00:17]} 40.
Nxg4 {[%clk 00:01:49]} {[%emt 00:00:02]} d5 {[%clk 00:00:50]} {[%emt 00:00:45]}
41. Bc7 {[%clk 00:01:50]} {[%emt 00:00:29]} Nd3 {[%clk 00:00:52]} {[%emt
00:00:26]} 42. Ne3 {[%clk 00:01:16]} {[%emt 00:01:05]} Nf4 {[%clk 00:01:02]}
{[%emt 00:00:21]} 43. Bf7 {[%clk 00:01:33]} {[%emt 00:00:13]} c4 {[%clk
00:01:18]} {[%emt 00:00:14]} 44. Nxc4 {[%clk 00:00:37]} {[%emt 00:01:26]} dxc4
{[%clk 00:01:32]} {[%emt 00:00:17]} 45. Bxc4 {[%clk 00:01:04]} {[%emt
00:00:03]} Kh6 {[%clk 00:01:34]} {[%emt 00:00:27]} 46. Kh2 {[%clk 00:01:11]}
{[%emt 00:00:24]} Kh5 {[%clk 00:01:44]} {[%emt 00:00:18]} 47. Kg3 {[%clk
00:01:19]} {[%emt 00:00:24]} Bf6 {[%clk 00:02:04]} {[%emt 00:00:09]} 48. Bb3
{[%emt 00:02:07]} Bh4+ {[%clk 00:01:40]} 49. Kh2 {[%clk 00:01:05]} {[%emt
00:00:03]} Nd3 {[%clk 00:01:25]} {[%emt 00:00:44]} 50. Bd1+ {[%clk 00:01:16]}
{[%emt 00:00:19]} Kh6 {[%clk 00:01:51]} {[%emt 00:00:04]} 51. f3 {[%clk
00:00:50]} {[%emt 00:00:57]} Bd5 {[%clk 00:02:16]} {[%emt 00:00:03]} 52. Bc2
{[%clk 00:00:40]} {[%emt 00:00:41]} Ne1 {[%clk 00:02:38]} {[%emt 00:00:08]} 53.
Bd1 {[%clk 00:00:35]} {[%emt 00:00:36]} Bxf3 {[%clk 00:02:51]} {[%emt
00:00:17]} 54. Bxf3 {[%clk 00:00:32]} {[%emt 00:00:33]} Nxf3+ {[%clk 00:03:20]}
55. Kh3 {[%clk 00:00:37]} {[%emt 00:00:25]} Kh5 {[%clk 00:03:49]} {[%emt
00:00:02]} 56. Kg2 {[%clk 00:00:42]} {[%emt 00:00:24]} Kg4 {[%clk 00:04:17]}
0-1

[Event "Kvibergspelen 2022"]
[Site "Kviberg Park Hotel & Conference, Krutvagen 2, Gothenburg, Sweden"]
[Date "2022.10.01"]
[Round "6.6"]
[White "Hector, Jonny"]
[Black "Dingertz, Erik"]
[Result "1-0"]
[TimeControl "15 minutes + 5 seconds per move from move one (Round 1 - 4) / 90 minutes + 30 seconds per move from move one (Round 5 - 8)"]
[WhiteTitle "GM"]
[WhiteFideId "1700090"]
[BlackFideId "1741578"]
[WhiteElo "2454"]
[BlackElo "2001"]

1. e4 {[%clk 01:30:55]} {[%emt 00:00:03]} e5 {[%clk 01:30:52]} {[%emt
00:00:08]} 2. Nf3 {[%clk 01:31:16]} {[%emt 00:00:09]} Nc6 {[%clk 01:31:16]}
{[%emt 00:00:07]} 3. Nc3 {[%clk 01:31:41]} {[%emt 00:00:05]} Nf6 {[%clk
01:31:24]} {[%emt 00:00:22]} 4. d4 {[%clk 01:32:05]} {[%emt 00:00:06]} exd4
{[%clk 01:31:44]} {[%emt 00:00:11]} 5. Nd5 {[%clk 01:32:27]} {[%emt 00:00:07]}
Be7 {[%clk 01:31:14]} {[%emt 00:01:00]} 6. Bc4 {[%clk 01:32:49]} {[%emt
00:00:08]} d6 {[%clk 01:30:52]} {[%emt 00:00:52]} 7. Nxd4 {[%clk 01:33:07]}
{[%emt 00:00:12]} Ne5 {[%clk 01:27:11]} {[%emt 00:04:12]} 8. Nxf6+ {[%clk
01:30:55]} {[%emt 00:02:41]} Bxf6 {[%clk 01:27:34]} {[%emt 00:00:07]} 9. Be2
{[%clk 01:30:54]} {[%emt 00:00:31]} Qe7 {[%clk 01:23:41]} {[%emt 00:04:23]} 10.
O-O {[%clk 01:29:34]} {[%emt 00:01:49]} Bd7 {[%clk 01:23:06]} {[%emt 00:01:07]}
11. Nf5 {[%clk 01:28:06]} {[%emt 00:01:57]} Bxf5 {[%clk 01:21:13]} {[%emt
00:02:24]} 12. exf5 {[%clk 01:28:32]} {[%emt 00:00:04]} O-O-O {[%clk 01:20:50]}
{[%emt 00:00:53]} 13. a4 {[%clk 01:28:11]} {[%emt 00:00:51]} g6 {[%clk
01:20:27]} {[%emt 00:00:53]} 14. a5 {[%clk 01:27:58]} {[%emt 00:00:42]} a6
{[%clk 01:18:11]} {[%emt 00:02:47]} 15. Rb1 {[%clk 01:26:28]} {[%emt 00:01:59]}
gxf5 {[%clk 01:10:16]} {[%emt 00:08:25]} 16. b4 {[%clk 01:25:34]} {[%emt
00:01:24]} Rhg8 {[%clk 01:08:36]} {[%emt 00:02:11]} 17. b5 {[%clk 01:25:15]}
{[%emt 00:00:50]} axb5 {[%clk 01:08:18]} {[%emt 00:00:48]} 18. Rxb5 {[%clk
01:25:27]} {[%emt 00:00:17]} Ng4 {[%clk 01:06:27]} {[%emt 00:02:21]} 19. a6
{[%clk 01:10:14]} {[%emt 00:15:43]} Be5 {[%clk 00:59:58]} {[%emt 00:06:59]} 20.
axb7+ {[%clk 01:09:59]} {[%emt 00:00:45]} Kb8 {[%clk 00:59:18]} {[%emt
00:01:09]} 21. Bxg4 {[%clk 01:07:18]} {[%emt 00:03:12]} Rxg4 {[%clk 00:58:05]}
{[%emt 00:01:44]} 22. Qf3 {[%clk 01:03:52]} {[%emt 00:03:54]} Rdg8 {[%clk
00:35:53]} {[%emt 00:22:42]} 23. g3 {[%clk 01:02:39]} {[%emt 00:01:44]} Qd7
{[%clk 00:36:12]} {[%emt 00:00:10]} 24. Qa3 {[%clk 01:00:51]} {[%emt 00:02:17]}
1-0

[Event "Kvibergspelen 2022"]
[Site "Kviberg Park Hotel & Conference, Krutvagen 2, Gothenburg, Sweden"]
[Date "2022.10.01"]
[Round "6.7"]
[White "Persson, Sebastian"]
[Black "Mohammadi, Amir"]
[Result "0-1"]
[TimeControl "15 minutes + 5 seconds per move from move one (Round 1 - 4) / 90 minutes + 30 seconds per move from move one (Round 5 - 8)"]
[WhiteFideId "1764187"]
[BlackFideId "1705890"]
[WhiteElo "1659"]
[BlackElo "2294"]

1. d4 {[%clk 01:30:56]} {[%emt 00:00:03]} f5 {[%clk 01:30:58]} {[%emt
00:00:04]} 2. c4 {[%clk 01:31:15]} {[%emt 00:00:10]} Nf6 {[%clk 01:31:19]}
{[%emt 00:00:09]} 3. Nc3 {[%clk 01:31:22]} {[%emt 00:00:23]} e6 {[%clk
01:31:41]} {[%emt 00:00:08]} 4. Nf3 {[%clk 01:31:25]} {[%emt 00:00:27]} d5
{[%clk 01:32:03]} {[%emt 00:00:09]} 5. Bg5 {[%clk 01:26:13]} {[%emt 00:05:41]}
c6 {[%clk 01:32:21]} {[%emt 00:00:13]} 6. e3 {[%clk 01:26:18]} {[%emt
00:00:25]} Bd6 {[%clk 01:32:17]} {[%emt 00:00:34]} 7. Ne5 {[%clk 01:24:40]}
{[%emt 00:02:07]} O-O {[%clk 01:32:33]} {[%emt 00:00:13]} 8. f4 {[%clk
01:24:19]} {[%emt 00:00:52]} Qe8 {[%clk 01:29:17]} {[%emt 00:03:47]} 9. Bxf6
{[%clk 01:22:11]} {[%emt 00:02:37]} gxf6 {[%clk 01:25:20]} {[%emt 00:04:27]} 10.
Nf3 {[%clk 01:19:07]} {[%emt 00:03:33]} Nd7 {[%clk 01:25:46]} {[%emt 00:00:05]}
11. Qd2 {[%clk 01:16:05]} {[%emt 00:03:32]} a5 {[%clk 01:25:34]} {[%emt
00:00:43]} 12. a4 {[%clk 01:09:49]} {[%emt 00:06:46]} Bb4 {[%clk 01:22:04]}
{[%emt 00:04:00]} 13. Be2 {[%clk 01:08:08]} {[%emt 00:02:10]} Kh8 {[%clk
01:17:38]} {[%emt 00:04:57]} 14. g3 {[%clk 01:02:52]} {[%emt 00:05:45]} Nb6
{[%clk 01:17:44]} {[%emt 00:00:23]} 15. c5 {[%clk 01:02:16]} {[%emt 00:01:07]}
Nd7 {[%clk 01:18:11]} {[%emt 00:00:04]} 16. Kf2 {[%clk 00:59:40]} {[%emt
00:03:05]} b6 {[%clk 01:13:39]} {[%emt 00:05:03]} 17. cxb6 {[%clk 00:59:28]}
{[%emt 00:00:41]} Nxb6 {[%clk 01:14:06]} {[%emt 00:00:03]} 18. h3 {[%clk
00:59:14]} {[%emt 00:00:44]} Rg8 {[%clk 01:12:41]} {[%emt 00:01:55]} 19. Qc2
{[%clk 00:57:02]} {[%emt 00:02:41]} Ra7 {[%clk 01:12:28]} {[%emt 00:00:43]} 20.
Rag1 {[%clk 00:56:16]} {[%emt 00:01:16]} Bd6 {[%clk 01:08:47]} {[%emt
00:04:10]} 21. g4 {[%clk 00:51:56]} {[%emt 00:04:51]} e5 {[%clk 01:06:27]}
{[%emt 00:02:50]} 22. fxe5 {[%clk 00:40:20]} {[%emt 00:12:06]} fxe5 {[%clk
01:06:54]} {[%emt 00:00:03]} 23. dxe5 {[%clk 00:40:10]} {[%emt 00:00:40]} Bxe5
{[%clk 01:06:59]} {[%emt 00:00:25]} 24. gxf5 {[%clk 00:38:57]} {[%emt
00:01:44]} Rf8 {[%clk 01:03:26]} {[%emt 00:04:01]} 25. Bd3 {[%clk 00:36:29]}
{[%emt 00:02:59]} Raf7 {[%clk 01:01:34]} {[%emt 00:02:21]} 26. Rg5 {[%clk
00:28:20]} {[%emt 00:08:40]} Bf6 {[%clk 00:53:10]} {[%emt 00:08:53]} 27. Rg3
{[%clk 00:24:58]} {[%emt 00:03:53]} Nd7 {[%clk 00:39:57]} {[%emt 00:13:43]} 28.
Ne2 {[%clk 00:15:56]} {[%emt 00:09:31]} c5 {[%clk 00:33:44]} {[%emt 00:06:44]}
29. Bb5 {[%clk 00:13:55]} {[%emt 00:02:31]} Qe7 {[%clk 00:34:09]} {[%emt
00:00:04]} 30. Nf4 {[%clk 00:13:45]} {[%emt 00:00:40]} Nb6 {[%clk 00:26:00]}
{[%emt 00:08:41]} 31. Rc1 {[%clk 00:12:16]} {[%emt 00:01:58]} c4 {[%clk
00:23:00]} {[%emt 00:03:30]} 32. Rd1 {[%clk 00:10:24]} {[%emt 00:02:22]} Qc5
{[%clk 00:11:02]} {[%emt 00:12:28]} 33. Nh5 {[%clk 00:07:29]} {[%emt 00:03:25]}
Qd6 {[%clk 00:07:17]} {[%emt 00:04:15]} 34. Nxf6 {[%clk 00:02:58]} {[%emt
00:05:01]} Qxf6 {[%clk 00:05:47]} {[%emt 00:01:59]} 35. e4 {[%clk 00:02:06]}
{[%emt 00:01:23]} dxe4 {[%clk 00:05:57]} {[%emt 00:00:20]} 36. Qxe4 {[%clk
00:02:34]} {[%emt 00:00:02]} Bxf5 {[%clk 00:06:05]} {[%emt 00:00:22]} 37. Qd4
{[%clk 00:01:58]} {[%emt 00:01:06]} Bd3 {[%clk 00:05:27]} {[%emt 00:01:08]} 38.
Qxf6+ {[%clk 00:01:08]} {[%emt 00:01:20]} Rxf6 {[%clk 00:05:55]} {[%emt
00:00:02]} 39. Re1 {[%clk 00:00:54]} {[%emt 00:00:44]} Nd5 {[%clk 00:04:46]}
{[%emt 00:01:38]} 40. b3 {[%clk 00:00:49]} {[%emt 00:00:36]} Nc3 {[%clk
00:02:50]} {[%emt 00:02:26]} 41. Re3 {[%clk 00:00:32]} {[%emt 00:00:47]} Nd1+
{[%clk 00:03:08]} {[%emt 00:00:12]} 0-1